bitfinex/quotes_BTCUSD_20260117
["timestamp","ask_amount","ask_price","bid_price","bid_amount"]
[1768679811808,0.01049791,95257.0,95254.0,0.01049824]
[1768679814336,0.0104978,95258.0,95255.0,0.0629888]
[1768679814738,0.01049769,95259.0,95256.0,0.06298807]
[1768679815235,0.01049769,95259.0,95256.0,0.01049802]
[1768679815598,0.01049758,95260.0,95257.0,0.01049791]
[1768679815845,0.06298658,95259.0,95255.0,0.01049813]
[1768679817060,0.01049769,95259.0,95255.0,0.06298877]
[1768679817304,0.06298627,95259.0,95255.0,0.01049813]
[1768679817511,0.0104978,95258.0,95255.0,0.01049813]
[1768679817924,0.01049791,95257.0,95253.0,0.01049835]
[1768679818497,0.06298761,95257.0,95253.0,0.01049835]
[1768679818924,0.06298761,95257.0,95253.0,0.06715743]
[1768679819240,0.01049802,95256.0,95253.0,0.06715743]
[1768679820346,0.06298816,95256.0,95253.0,0.06715743]
[1768679820972,0.01049802,95256.0,95253.0,0.05665908]
[1768679821779,0.01049802,95256.0,95253.0,0.06715743]
[1768679823027,0.01049802,95256.0,95253.0,0.1196492]
[1768679823673,0.06298847,95256.0,95253.0,0.05665908]
[1768679824007,0.01049802,95256.0,95253.0,0.06715743]
[1768679824186,0.01049802,95256.0,95253.0,0.119649]
[1768679824758,0.01049791,95257.0,95254.0,0.06298941]
[1768679825130,0.01049791,95257.0,95254.0,0.01049824]
[1768679825706,0.01049791,95257.0,95254.0,0.00962299]
[1768679827228,0.01049791,95257.0,95253.0,0.05665908]
[1768679827229,0.01049802,95256.0,95253.0,0.05665908]
[1768679828431,0.06298822,95256.0,95253.0,0.05665908]
[1768679828832,0.05249106,95255.0,95253.0,0.05665908]
[1768679829621,0.05249178,95253.0,95252.0,0.05665908]
[1768679830190,0.05249134,95254.0,95252.0,0.05665908]
[1768679832380,0.06298895,95255.0,95252.0,0.05665908]
[1768679832727,0.01049813,95255.0,95252.0,0.05665908]
[1768679833853,0.01049813,95255.0,95252.0,0.06715754]
[1768679834290,0.06298925,95255.0,95252.0,0.05665908]
[1768679834510,0.05249129,95254.0,95252.0,0.05665908]
[1768679837245,0.05249129,95254.0,95251.0,0.05665908]
[1768679837246,0.06298953,95254.0,95251.0,0.05665908]
[1768679838352,0.01049824,95254.0,95251.0,0.05665908]
[1768679840139,0.01049824,95254.0,95251.0,0.06715765]
[1768679840340,0.01049824,95254.0,95251.0,0.11965048]
[1768679841312,0.01049813,95255.0,95251.0,0.11965048]
[1768679843693,0.01049813,95255.0,95252.0,0.05665908]
[1768679845192,0.01049813,95255.0,95252.0,0.06715754]
[1768679845388,0.01049802,95256.0,95252.0,0.1196497]
[1768679855309,0.0629892,95255.0,95252.0,0.05665908]
[1768679857304,0.05249124,95254.0,95252.0,0.05665908]
[1768679858984,0.0629889,95255.0,95252.0,0.05665908]
[1768679860647,0.05249171,95254.0,95252.0,0.05665908]
[1768679862010,0.01049813,95255.0,95252.0,0.05665908]
[1768679864554,0.01049813,95255.0,95252.0,0.06715754]
[1768679864751,0.01049813,95255.0,95252.0,0.11964985]
[1768679865183,0.01049802,95256.0,95252.0,0.11964985]
[1768679866534,0.01049802,95256.0,95253.0,0.06299006]
[1768679867784,0.01049802,95256.0,95253.0,0.11964914]
[1768679868341,0.01049802,95256.0,95253.0,0.1196492]
[1768679868544,0.01049791,95257.0,95253.0,0.1196492]
[1768679868722,0.01049791,95257.0,95253.0,0.11957038]
[1768679869609,0.0104978,95258.0,95255.0,0.01049813]
[1768679870466,0.06298683,95258.0,95255.0,0.01049813]
[1768679871570,0.06298683,95258.0,95254.0,0.01049824]
[1768679872079,0.01049802,95256.0,95253.0,0.06707861]
[1768679872739,0.01049802,95256.0,95253.0,0.11957034]
[1768679872950,0.01049802,95256.0,95253.0,0.06707861]
[1768679873133,0.06298832,95256.0,95253.0,0.06707861]
[1768679873572,0.01049802,95256.0,95253.0,0.06707861]
[1768679873772,0.06298829,95256.0,95253.0,0.06707861]
[1768679873973,0.01049802,95256.0,95253.0,0.06707861]
[1768679875255,0.06298696,95258.0,95253.0,0.11957032]
[1768679875468,0.06298696,95258.0,95254.0,0.01049824]
[1768679875667,0.01049791,95257.0,95254.0,0.01049824]
[1768679876478,0.0104978,95258.0,95255.0,0.01049813]
[1768679877229,0.0104978,95258.0,95255.0,0.06298879]
[1768679878327,0.0104978,95258.0,95255.0,0.06279518]
[1768679879432,0.0104978,95258.0,95255.0,0.01030452]
[1768679880379,0.0104978,95258.0,95255.0,0.01049813]
[1768679880582,0.0104978,95258.0,95255.0,0.06298875]
[1768679880786,0.0104978,95258.0,95255.0,0.01049813]
[1768679881281,0.01049791,95257.0,95253.0,0.06707861]
[1768679881482,0.01049791,95257.0,95254.0,0.01049824]
[1768679881988,0.01049791,95257.0,95254.0,0.06298936]
[1768679882554,0.0104978,95258.0,95254.0,0.06298936]
[1768679883540,0.0104978,95258.0,95255.0,0.01049813]
[1768679884057,0.0104978,95258.0,95255.0,0.06298881]
[1768679884769,0.0104978,95258.0,95255.0,0.01049813]
[1768679885244,0.0104978,95258.0,95255.0,0.06298876]
[1768679885852,0.0104978,95258.0,95255.0,0.06279512]
[1768679886405,0.15495988,95260.0,95256.0,0.01049802]
[1768679886620,0.16545746,95260.0,95256.0,0.01049802]
[1768679887277,0.16545746,95260.0,95256.0,0.06298815]
[1768679887918,0.11296938,95260.0,95256.0,0.06298815]
[1768679889036,0.11296938,95260.0,95257.0,0.01049791]
[1768679890362,0.11296938,95260.0,95257.0,0.06298738]
[1768679890746,0.01049769,95259.0,95255.0,0.01049813]
[1768679891307,0.06298684,95258.0,95254.0,0.01049824]
[1768679891515,0.0104978,95258.0,95254.0,0.01049824]
[1768679891736,0.0104978,95258.0,95255.0,0.06298876]
[1768679891924,0.0104978,95258.0,95255.0,0.01049813]
[1768679892138,0.06298683,95258.0,95255.0,0.01049813]
[1768679892558,0.0104978,95258.0,95255.0,0.01049813]
[1768679893346,0.0104978,95258.0,95255.0,0.0101109]
[1768679893720,0.06298749,95257.0,95253.0,0.06707861]
[1768679893935,0.01049791,95257.0,95253.0,0.11957014]
[1768679894130,0.01049791,95257.0,95253.0,0.11937659]
[1768679894331,0.01049791,95257.0,95254.0,0.01049824]
[1768679895298,0.01049791,95257.0,95253.0,0.06688506]
[1768679895505,0.0104978,95258.0,95255.0,0.01049813]
[1768679895909,0.06298689,95258.0,95255.0,0.01049813]
[1768679897529,0.01049791,95257.0,95253.0,0.06688506]
[1768679897739,0.01049791,95257.0,95254.0,0.01049824]
[1768679899005,0.01049791,95257.0,95254.0,0.06298942]
[1768679899486,0.01049769,95259.0,95256.0,0.01049802]
[1768679899782,0.01049758,95260.0,95257.0,0.01049791]
[1768679901271,0.01049747,95261.0,95257.0,0.06298728]
[1768679901483,0.11296894,95264.0,95259.0,0.01049769]
[1768679901950,0.11296894,95264.0,95260.0,0.05248747]
[1768679902133,0.11296894,95264.0,95259.0,0.01049769]
[1768679902516,0.01049714,95264.0,95260.0,0.0524878]
[1768679902948,0.01049714,95264.0,95260.0,0.01049758]
[1768679903165,0.06298324,95264.0,95260.0,0.01049758]
[1768679903361,0.01049725,95263.0,95260.0,0.01049758]
[1768679908870,0.01049725,95263.0,95260.0,0.04828466]
[1768679909237,0.06298375,95263.0,95260.0,0.03778708]
[1768679909436,0.01049725,95263.0,95260.0,0.03778708]
[1768679910903,0.01049725,95263.0,95260.0,0.04828466]
[1768679911349,0.01049714,95264.0,95262.0,0.03778708]
[1768679912371,0.01049714,95264.0,95261.0,0.03778708]
[1768679912571,0.01049714,95264.0,95262.0,0.03778708]
[1768679912775,0.01049714,95264.0,95261.0,0.03778708]
[1768679913185,0.01049714,95264.0,95262.0,0.03778708]
[1768679913186,0.01149714,95264.0,95262.0,0.03778708]
[1768679913417,0.01149714,95264.0,95261.0,0.03778708]
[1768679913766,0.05248627,95263.0,95261.0,0.03778708]
[1768679915380,0.05248641,95263.0,95261.0,0.03778708]
[1768679917673,0.01049714,95264.0,95261.0,0.03778708]
[1768679917982,0.06298352,95263.0,95259.0,0.01049769]
[1768679918278,0.01049736,95262.0,95259.0,0.01049769]
[1768679919621,0.01049736,95262.0,95259.0,0.06298609]
[1768679919823,0.01049725,95263.0,95259.0,0.06298609]
[1768679920025,0.01049725,95263.0,95261.0,0.03777804]
[1768679920640,0.06298385,95263.0,95261.0,0.03777804]
[1768679920845,0.01049725,95263.0,95261.0,0.03777804]
[1768679921059,0.06298353,95263.0,95261.0,0.03777804]
[1768679921721,0.01049725,95263.0,95261.0,0.03777804]
[1768679921918,0.01049714,95264.0,95261.0,0.03777804]
[1768679922275,0.01049714,95264.0,95261.0,0.04827551]
[1768679925040,0.01049714,95264.0,95261.0,0.10076287]
[1768679925446,0.01049714,95264.0,95261.0,0.04827551]
[1768679929366,0.01049714,95264.0,95262.0,0.03777804]
[1768679930994,0.01049714,95264.0,95261.0,0.03777804]
[1768679931392,0.01049725,95263.0,95259.0,0.01049769]
[1768679931809,0.01049725,95263.0,95258.0,0.0104978]
[1768679932038,0.01049736,95262.0,95258.0,0.0104978]
[1768679932211,0.01049747,95261.0,95258.0,0.0104978]
[1768679935727,0.01049758,95260.0,95257.0,0.01049791]
[1768679937139,0.01049747,95261.0,95257.0,0.06298717]
[1768679937700,0.01049747,95261.0,95257.0,0.06298741]
[1768679939048,0.06298497,95261.0,95257.0,0.01049791]
[1768679939339,0.01049747,95261.0,95257.0,0.06298736]
[1768679939533,0.01049747,95261.0,95258.0,0.06298676]
[1768679940104,0.01049747,95261.0,95258.0,0.0104978]
[1768679940379,0.06298594,95260.0,95256.0,0.01049802]
[1768679940615,0.01049747,95261.0,95257.0,0.01049791]
[1768679941563,0.01049747,95261.0,95258.0,0.0104978]
[1768679941768,0.01049736,95262.0,95259.0,0.01049769]
[1768679945403,0.01049736,95262.0,95259.0,0.06298599]
[1768679946451,0.01049736,95262.0,95259.0,0.01049769]
[1768679947738,0.01049736,95262.0,95259.0,0.06298611]
[1768679947876,0.01049714,95264.0,95260.0,0.06298545]
[1768679948072,0.06298304,95264.0,95260.0,0.01049758]
[1768679948272,0.01049714,95264.0,95260.0,0.06298546]
[1768679949830,0.01049714,95264.0,95260.0,0.01049758]
[1768679951280,0.01049714,95264.0,95260.0,0.06298531]
[1768679951964,0.01049736,95262.0,95258.0,0.0104978]
[1768679953134,0.06298421,95262.0,95258.0,0.0104978]
[1768679953344,0.06298421,95262.0,95259.0,0.01049769]
[1768679953552,0.06298494,95261.0,95257.0,0.01049791]
[1768679954161,0.01049747,95261.0,95257.0,0.01049791]
[1768679954364,0.06298526,95261.0,95257.0,0.01049791]
[1768679957762,0.01049747,95261.0,95257.0,0.06298729]
[1768679957966,0.01049747,95261.0,95257.0,0.01049791]
[1768679958398,0.01049747,95261.0,95257.0,0.06298743]
[1768679958950,0.06298491,95261.0,95257.0,0.01049791]
[1768679960859,0.06298565,95260.0,95257.0,0.01049791]
[1768679961035,0.01049758,95260.0,95257.0,0.01049791]
[1768679961945,0.01049769,95259.0,95256.0,0.01049802]
[1768679962480,0.01049758,95260.0,95257.0,0.06298744]
[1768679963760,0.01049758,95260.0,95257.0,0.01049791]
[1768679964213,0.01049747,95261.0,95258.0,0.06298681]
[1768679964963,0.01049758,95260.0,95256.0,0.06298813]
[1768679965165,0.01049758,95260.0,95256.0,0.01049802]
[1768679965528,0.01049758,95260.0,95256.0,0.06298806]
[1768679969626,0.06298556,95260.0,95256.0,0.01049802]
[1768679969763,0.05248903,95258.0,95255.0,0.05665908]
[1768679970203,0.06298628,95259.0,95255.0,0.05665908]
[1768679970749,0.0104978,95258.0,95255.0,0.06715721]
[1768679973078,0.06298685,95258.0,95255.0,0.06715721]
[1768679973278,0.0104978,95258.0,95255.0,0.06715721]
[1768679973883,0.0104978,95258.0,95255.0,0.11964785]
[1768679974487,0.01049769,95259.0,95255.0,0.05665908]
[1768679974710,0.06298684,95258.0,95255.0,0.05665908]
[1768679974912,0.0104978,95258.0,95255.0,0.05665908]
[1768679976361,0.06298683,95258.0,95255.0,0.05665908]
[1768679977651,0.0104978,95258.0,95255.0,0.11964786]
[1768679977841,0.0104978,95258.0,95255.0,0.06715721]
[1768679981879,0.0104978,95258.0,95255.0,0.11964779]
[1768679982084,0.0104978,95258.0,95255.0,0.06715721]
[1768679982286,0.0104978,95258.0,95255.0,0.1196478]
[1768679983315,0.01049769,95259.0,95255.0,0.1196478]
[1768679983497,0.01049769,95259.0,95256.0,0.01049802]
[1768679984945,0.01049758,95260.0,95257.0,0.01049791]
[1768679986084,0.0104978,95258.0,95255.0,0.05665908]
[1768679986521,0.0104978,95258.0,95255.0,0.11964788]
[1768679990133,0.0104978,95258.0,95255.0,0.06715721]
[1768679991617,0.0104978,95258.0,95255.0,0.06702354]
[1768679993439,0.0629869,95258.0,95255.0,0.06702354]
[1768679993649,0.06298686,95258.0,95255.0,0.06702354]
[1768679993860,0.06298686,95258.0,95255.0,0.05652541]
[1768679994268,0.0104978,95258.0,95255.0,0.05652541]
[1768679994815,0.0104978,95258.0,95255.0,0.06702354]
[1768679995028,0.01049769,95259.0,95256.0,0.01049802]
[1768679996650,0.01049758,95260.0,95257.0,0.01049791]
[1768679996862,0.06298552,95260.0,95257.0,0.01049791]
[1768679997275,0.0104978,95258.0,95255.0,0.06702354]
[1768679998414,0.06298552,95260.0,95256.0,0.01049802]
[1768679999468,0.01049769,95259.0,95256.0,0.01049802]
[1768680000802,0.0104978,95258.0,95255.0,0.05652541]
[1768680001218,0.10651432,95258.0,95254.0,0.01049824]
[1768680001411,0.06298749,95257.0,95256.0,0.0104978]
[1768680001993,0.01049791,95257.0,95256.0,0.0104978]
[1768680002211,0.06298749,95257.0,95256.0,0.0104978]
[1768680002387,0.10651465,95255.0,95250.0,0.01097549]
[1768680002594,0.10651476,95254.0,95250.0,0.01097549]
[1768680002874,0.0627383,95253.0,95250.0,0.01097549]
[1768680003075,0.01024649,95253.0,95250.0,0.01097549]
[1768680003534,0.06273831,95253.0,95250.0,0.01097549]
[1768680003757,0.01024649,95253.0,95250.0,0.04246885]
[1768680003957,0.01049824,95254.0,95251.0,0.01049857]
[1768680004492,0.01049824,95254.0,95251.0,0.06299131]
[1768680005935,0.01049824,95254.0,95251.0,0.01049857]
[1768680007753,0.06299036,95253.0,95250.0,0.04246885]
[1768680008247,0.01049824,95254.0,95250.0,0.04246885]
[1768680008460,0.01049824,95254.0,95250.0,0.01097549]
[1768680008629,0.06298947,95254.0,95251.0,0.01049824]
[1768680009050,0.01049824,95254.0,95251.0,0.01049824]
[1768680009283,0.06299013,95253.0,95250.0,0.00047681]
[1768680009481,0.01049835,95253.0,95250.0,0.00047681]
[1768680009644,0.01049835,95253.0,95250.0,0.06346891]
[1768680009855,0.01049835,95253.0,95250.0,0.01097549]
[1768680010674,0.05249233,95252.0,95250.0,0.00047681]
[1768680010988,0.01049835,95253.0,95250.0,0.00047681]
[1768680011192,0.06299027,95253.0,95250.0,0.00047681]
[1768680011589,0.01049835,95253.0,95250.0,0.01097549]
[1768680012807,0.01049835,95253.0,95250.0,0.06346889]
[1768680014609,0.01049824,95254.0,95250.0,0.06346889]
[1768680015583,0.01049824,95254.0,95251.0,0.06299137]
[1768680015787,0.01049813,95255.0,95251.0,0.06299137]
[1768680019236,0.01049813,95255.0,95252.0,0.01049846]
[1768680020881,0.01049813,95255.0,95252.0,0.06299078]
[1768680021330,0.01049813,95255.0,95252.0,0.01049846]
[1768680022089,0.01049813,95255.0,95252.0,0.06716718]
[1768680027336,0.05248806,95260.0,95253.0,0.01049835]
[1768680027512,0.01049769,95259.0,95254.0,0.01049824]
[1768680027917,0.01049769,95259.0,95255.0,0.01049813]
[1768680028524,0.00933595,95259.0,95255.0,0.06298848]
[1768680029505,0.00933595,95259.0,95256.0,0.06298811]
[1768680029760,0.00933595,95259.0,95256.0,0.01049802]
[1768680029998,0.01049758,95260.0,95256.0,0.01049802]
[1768680030394,0.01049758,95260.0,95257.0,0.01049791]
[1768680030618,0.01049758,95260.0,95257.0,0.0104525]
[1768680030977,0.01049758,95260.0,95257.0,0.06294198]
[1768680031307,0.01049769,95259.0,95255.0,0.01049813]
[1768680031510,0.01049758,95260.0,95257.0,0.06298748]
[1768680032230,0.01049758,95260.0,95257.0,0.06298742]
[1768680032630,0.01049758,95260.0,95257.0,0.01049791]
[1768680033091,0.06298586,95260.0,95256.0,0.01049802]
[1768680033297,0.06298586,95260.0,95255.0,0.01049813]
[1768680033519,0.01049758,95260.0,95256.0,0.01049802]
[1768680034400,0.01049758,95260.0,95257.0,0.01049791]
[1768680034613,0.01049758,95260.0,95257.0,0.0075936]
[1768680035046,0.06298566,95260.0,95257.0,0.0075936]
[1768680035656,0.01049758,95260.0,95257.0,0.0075936]
[1768680036225,0.06298616,95259.0,95256.0,0.01049802]
[1768680036449,0.01049769,95259.0,95256.0,0.01049802]
[1768680036830,0.01049747,95261.0,95256.0,0.01049802]
[1768680037071,0.01049747,95261.0,95256.0,0.06298805]
[1768680038058,0.06298492,95261.0,95256.0,0.06298805]
[1768680038262,0.06298492,95261.0,95257.0,0.01049791]
[1768680040097,0.06143452,95261.0,95257.0,0.01049791]
[1768680040933,0.01049758,95260.0,95257.0,0.01049791]
[1768680042209,0.01049758,95260.0,95257.0,0.06298742]
[1768680042825,0.00894707,95261.0,95258.0,0.0104978]
[1768680043962,0.01049758,95260.0,95257.0,0.01049791]
[1768680046387,0.01049714,95264.0,95259.0,0.01049769]
[1768680046598,0.06298289,95264.0,95259.0,0.06298603]
[1768680047016,0.06298288,95264.0,95259.0,0.06298601]
[1768680047425,0.06298288,95264.0,95260.0,0.01049758]
[1768680047635,0.01049714,95264.0,95261.0,0.03778507]
[1768680047846,0.01049714,95264.0,95262.0,0.03778507]
[1768680048669,0.0629829,95264.0,95262.0,0.03778507]
[1768680048879,0.01049714,95264.0,95262.0,0.03778507]
[1768680049319,0.01049714,95264.0,95261.0,0.04828254]
[1768680050826,0.01049714,95264.0,95261.0,0.03778507]
[1768680051814,0.01049714,95264.0,95261.0,0.04828254]
[1768680052020,0.01049714,95264.0,95261.0,0.1007698]
[1768680052974,0.01049714,95264.0,95261.0,0.04828254]
[1768680054828,0.06298289,95264.0,95261.0,0.03778507]
[1768680056141,0.01049714,95264.0,95261.0,0.03778507]
[1768680056424,0.06298306,95264.0,95261.0,0.03778507]
[1768680056845,0.05248663,95263.0,95261.0,0.03778507]
[1768680058890,0.05248682,95262.0,95261.0,0.03778507]
[1768680062080,0.05248642,95263.0,95261.0,0.03778507]
[1768680062279,0.05248682,95262.0,95261.0,0.03778507]
[1768680069840,0.05248642,95263.0,95261.0,0.03778507]
[1768680070885,0.05248682,95262.0,95261.0,0.03778507]
[1768680072908,0.01049758,95260.0,95258.0,0.03777786]
[1768680073113,0.01027651,95260.0,95258.0,0.03777786]
[1768680073510,0.06298418,95262.0,95258.0,0.03777786]
[1768680074323,0.06298418,95262.0,95258.0,0.04827566]
[1768680075001,0.01049736,95262.0,95258.0,0.10076454]
[1768680075200,0.01049736,95262.0,95258.0,0.04827566]
[1768680076163,0.01049747,95261.0,95258.0,0.0104978]
[1768680080085,0.06298531,95261.0,95257.0,0.01049791]
[1768680080939,0.06290137,95261.0,95257.0,0.01049791]
[1768680081151,0.01041353,95261.0,95258.0,0.0104978]
[1768680081615,0.01041353,95261.0,95257.0,0.01049791]
[1768680081616,0.01049758,95260.0,95257.0,0.01049791]
[1768680081840,0.00988074,95260.0,95257.0,0.06298737]
[1768680082043,0.00988074,95260.0,95255.0,0.01049813]
[1768680082865,0.00988074,95260.0,95256.0,0.05666872]
[1768680083283,0.00988074,95260.0,95256.0,0.06716674]
[1768680083904,0.00988074,95260.0,95256.0,0.11965678]
[1768680085448,0.06236878,95260.0,95256.0,0.06716674]
[1768680085633,0.00988074,95260.0,95256.0,0.06716674]
[1768680086763,0.00988074,95260.0,95256.0,0.11965661]
[1768680086969,0.00988074,95260.0,95256.0,0.06716674]
[1768680087180,0.00988074,95260.0,95257.0,0.01049791]
[1768680088646,0.06236874,95260.0,95257.0,0.01049791]
[1768680090404,0.00988074,95260.0,95257.0,0.06298743]
[1768680090616,0.01049736,95262.0,95258.0,0.06298669]
[1768680091890,0.01049736,95262.0,95258.0,0.0104978]
[1768680093780,0.01049736,95262.0,95258.0,0.06298663]
[1768680096789,0.0629842,95262.0,95258.0,0.0104978]
[1768680096990,0.01049736,95262.0,95258.0,0.0104978]
[1768680097787,0.01049736,95262.0,95258.0,0.06298675]
[1768680098693,0.01049736,95262.0,95259.0,0.01049769]
[1768680098903,0.01049736,95262.0,95259.0,0.06298607]
[1768680099113,0.01049736,95262.0,95259.0,0.01049769]
[1768680100530,0.01049736,95262.0,95259.0,0.06298607]
[1768680102303,0.01049725,95263.0,95260.0,0.06298545]
[1768680102963,0.001,95262.0,95260.0,0.06298545]
[1768680103379,0.01049725,95263.0,95260.0,0.06298545]
[1768680104013,0.01049725,95263.0,95259.0,0.06298615]
[1768680104782,0.06298359,95263.0,95259.0,0.01049769]
[1768680106774,0.01049736,95262.0,95259.0,0.01049769]
[1768680112764,0.06298419,95262.0,95258.0,0.0104978]
[1768680112957,0.01049736,95262.0,95258.0,0.06298682]
[1768680113163,0.01049747,95261.0,95258.0,0.0104978]
[1768680113343,0.06298499,95261.0,95257.0,0.01049791]
[1768680114477,0.01049747,95261.0,95258.0,0.0104978]
[1768680114677,0.01049747,95261.0,95258.0,0.06298676]
[1768680115256,0.01049736,95262.0,95258.0,0.06298676]
[1768680115713,0.01049736,95262.0,95259.0,0.01049769]
[1768680115923,0.01049725,95263.0,95259.0,0.01049769]
[1768680116875,0.01049725,95263.0,95259.0,0.06298565]
[1768680118796,0.06298356,95263.0,95259.0,0.01049769]
[1768680122615,0.01049736,95262.0,95259.0,0.01049769]
[1768680123656,0.06298435,95262.0,95259.0,0.01049769]
[1768680124680,0.06298435,95262.0,95258.0,0.0104978]
[1768680124884,0.062985,95261.0,95258.0,0.0104978]
[1768680125085,0.062985,95261.0,95258.0,0.00725559]
[1768680125440,0.01049747,95261.0,95258.0,0.00725559]
[1768680125847,0.01049736,95262.0,95259.0,0.01049769]
[1768680126557,0.01049725,95263.0,95259.0,0.06298607]
[1768680128429,0.06298355,95263.0,95257.0,0.01049791]
[1768680128638,0.01049747,95261.0,95258.0,0.0104978]
[1768680129249,0.06298511,95261.0,95258.0,0.0104978]
[1768680129864,0.01049747,95261.0,95258.0,0.0104978]
[1768680130005,0.06298495,95261.0,95258.0,0.0104978]
[1768680130202,0.01049747,95261.0,95258.0,0.0104978]
[1768680130631,0.06298537,95261.0,95257.0,0.01049791]
[1768680133278,0.06298537,95261.0,95257.0,0.01045251]
[1768680134245,0.06298537,95261.0,95257.0,0.01040711]
[1768680134683,0.01049758,95260.0,95256.0,0.05666872]
[1768680134893,0.01049769,95259.0,95256.0,0.06716674]
[1768680135321,0.01049769,95259.0,95256.0,0.11965687]
[1768680135495,0.01049758,95260.0,95257.0,0.01049791]
[1768680136900,0.01049747,95261.0,95258.0,0.0104978]
[1768680138179,0.01049747,95261.0,95257.0,0.0629874]
[1768680139857,0.01049747,95261.0,95258.0,0.0104978]
[1768680141405,0.01049747,95261.0,95258.0,0.0104524]
[1768680144161,0.01049758,95260.0,95257.0,0.01049791]
[1768680147292,0.06298579,95260.0,95256.0,0.06716674]
[1768680148194,0.06298579,95260.0,95256.0,0.06712134]
[1768680149159,0.01049769,95259.0,95256.0,0.05662332]
[1768680150027,0.0629862,95259.0,95256.0,0.05662332]
[1768680150236,0.01049769,95259.0,95256.0,0.05662332]
[1768680153677,0.01049769,95259.0,95256.0,0.05362274]
[1768680156004,0.01049769,95259.0,95256.0,0.06412076]
[1768680156548,0.01049769,95259.0,95256.0,0.11661086]
[1768680156894,0.01049769,95259.0,95256.0,0.06412076]
[1768680159071,0.01049769,95259.0,95256.0,0.11661077]
[1768680161172,0.01049769,95259.0,95256.0,0.06412076]
[1768680165063,0.01049769,95259.0,95256.0,0.11661088]
[1768680165448,0.01049769,95259.0,95256.0,0.06412076]
[1768680167793,0.01049769,95259.0,95256.0,0.11661066]
[1768680168224,0.01049769,95259.0,95256.0,0.06412076]
[1768680173630,0.06298618,95259.0,95256.0,0.06412076]
[1768680173799,0.01049769,95259.0,95256.0,0.05362274]
[1768680174760,0.05248904,95258.0,95256.0,0.05362274]
[1768680174980,0.01049769,95259.0,95256.0,0.05362274]
[1768680175137,0.06298824,95256.0,95252.0,0.01115409]
[1768680175332,0.06298824,95256.0,95252.0,0.02165255]
[1768680175333,0.06289744,95256.0,95252.0,0.02165255]
[1768680181093,0.01040722,95256.0,95252.0,0.07414478]
[1768680181628,0.01040722,95256.0,95252.0,0.07414472]
[1768680182504,0.06289738,95256.0,95252.0,0.02165255]
[1768680182824,0.01040722,95256.0,95252.0,0.02165255]
[1768680184432,0.01040722,95256.0,95252.0,0.07414486]
[1768680185075,0.01040722,95256.0,95252.0,0.06299077]
[1768680187542,0.06298684,95258.0,95253.0,0.06299002]
[1768680188159,0.01049802,95256.0,95253.0,0.01049835]
[1768680189945,0.01049802,95256.0,95252.0,0.06299074]
[1768680189946,0.01049802,95256.0,95252.0,0.01049846]
[1768680190143,0.06298867,95256.0,95252.0,0.01049846]
[1768680190576,0.01049813,95255.0,95252.0,0.01049846]
[1768680190783,0.06298867,95256.0,95252.0,0.01049846]
[1768680192306,0.01049813,95255.0,95252.0,0.01049846]
[1768680195983,0.01049824,95254.0,95250.0,0.01097549]
[1768680196184,0.01049824,95254.0,95251.0,0.01049857]
[1768680196522,0.01049835,95253.0,95250.0,0.01097549]
[1768680196727,0.0098838,95253.0,95250.0,0.01097549]
[1768680197245,0.01049824,95254.0,95250.0,0.06346891]
[1768680199813,0.01049824,95254.0,95251.0,0.01049857]
[1768680200795,0.06298893,95255.0,95251.0,0.01049857]
[1768680200990,0.06298893,95255.0,95254.0,0.05668401]
[1768680203400,0.01049813,95255.0,95254.0,0.05668401]
[1768680203773,0.01040732,95255.0,95254.0,0.05668401]
[1768680204411,0.01049802,95256.0,95254.0,0.05668401]
[1768680204815,0.06298691,95258.0,95254.0,0.05668401]
[1768680205053,0.06298691,95258.0,95254.0,0.06718225]
[1768680205221,0.01049791,95257.0,95254.0,0.05668401]
[1768680206264,0.06298775,95257.0,95254.0,0.05668401]
[1768680206468,0.05249015,95256.0,95254.0,0.05668401]
[1768680206691,0.05239933,95256.0,95254.0,0.05668401]
[1768680207901,0.05249068,95255.0,95254.0,0.05668401]
[1768680208082,0.01049791,95257.0,95254.0,0.05668401]
[1768680208289,0.06298759,95257.0,95255.0,0.05668401]
[1768680209042,0.05249013,95256.0,95255.0,0.05668401]
[1768680209838,0.06298761,95257.0,95255.0,0.05668401]
[1768680210714,0.06298761,95257.0,95256.0,0.05668401]
[1768680210845,0.01049824,95254.0,95251.0,0.0566849]
[1768680211047,0.06299026,95253.0,95250.0,0.00047681]
[1768680211247,0.05249238,95252.0,95250.0,0.00047681]
[1768680211685,0.05249288,95251.0,95250.0,0.00047681]
[1768680212371,0.05240206,95251.0,95250.0,0.00047681]
[1768680214714,0.01049835,95253.0,95250.0,0.00047681]
[1768680214715,0.0524924,95252.0,95250.0,0.00047681]
[1768680214870,0.05249288,95251.0,95250.0,0.00047681]
[1768680217123,0.0524924,95252.0,95250.0,0.00047681]
[1768680217970,0.05249288,95251.0,95250.0,0.00047681]
[1768680220364,0.01049835,95253.0,95250.0,0.00047681]
[1768680221715,0.06299023,95253.0,95250.0,0.00047681]
[1768680222374,0.01049835,95253.0,95250.0,0.00047681]
[1768680222534,0.01049835,95253.0,95250.0,0.06346882]
[1768680222740,0.01049824,95254.0,95250.0,0.06346882]
[1768680222991,0.01049824,95254.0,95251.0,0.06299137]
[1768680223132,0.01049813,95255.0,95251.0,0.06299137]
[1768680226039,0.01040731,95255.0,95251.0,0.06299137]
[1768680227702,0.01049835,95253.0,95250.0,0.00047681]
[1768680227926,0.0104492,95253.0,95250.0,0.06346891]
[1768680228569,0.0104492,95253.0,95250.0,0.00047681]
[1768680229154,0.0104492,95253.0,95250.0,0.01097549]
[1768680229565,0.0104492,95253.0,95250.0,0.06346891]
[1768680229837,0.06289812,95255.0,95250.0,0.06346891]
[1768680230054,0.06298951,95254.0,95250.0,0.01097549]
[1768680230375,0.01049835,95253.0,95250.0,0.00047681]
[1768680230589,0.05249235,95252.0,95250.0,0.00047681]
[1768680230797,0.04855673,95252.0,95250.0,0.00047681]
[1768680230937,0.04847278,95252.0,95250.0,0.00047681]
[1768680231136,0.04847278,95252.0,95249.0,0.01049879]
[1768680231322,0.02104814,95252.0,95249.0,0.01049879]
[1768680231523,0.01049846,95252.0,95249.0,0.01049879]
[1768680232091,0.01049857,95251.0,95248.0,0.02104814]
[1768680232381,0.01041462,95251.0,95248.0,0.03154704]
[1768680232675,0.01033067,95251.0,95248.0,0.08404151]
[1768680232878,0.01049846,95252.0,95248.0,0.08404151]
[1768680233027,0.01049846,95252.0,95249.0,0.01049879]
[1768680233677,0.06299095,95252.0,95249.0,0.01049879]
[1768680235407,0.01049846,95252.0,95249.0,0.01049879]
[1768680235820,0.06299086,95252.0,95249.0,0.01049879]
[1768680236387,0.01049846,95252.0,95249.0,0.01049879]
[1768680236604,0.01049846,95252.0,95249.0,0.00048133]
[1768680237280,0.01049846,95252.0,95249.0,0.06347393]
[1768680237485,0.01049846,95252.0,95249.0,0.01098012]
[1768680238134,0.06299084,95252.0,95249.0,0.00048133]
[1768680238755,0.06234643,95252.0,95249.0,0.00048133]
[1768680239302,0.00985405,95252.0,95249.0,0.00048133]
[1768680240914,0.00985405,95252.0,95249.0,0.01098012]
[1768680241742,0.0097701,95252.0,95249.0,0.01098012]
[1768680241940,0.00874325,95252.0,95249.0,0.01098012]
[1768680242147,0.0086593,95252.0,95249.0,0.01098012]